[Event "NOR-ch Elite 2019"]
[Site "Larvik"]
[Date "2019.07.12"]
[Round "8.4"]
[White "Mihajlov, Sebastian"]
[Black "Hammer, Jon Ludvig"]
[Result "0-1"]
[ECO "C01"]
[WhiteElo "2375"]
[BlackElo "2637"]
[Annotator "ChessBase"]
[PlyCount "126"]
[EventDate "2019.07.05"]
[EventType "swiss"]
[EventCountry "NOR"]
[SourceTitle "playchess.com"]
[Source "ChessBase"]
[SourceQuality "1"]
[TimeControl "40/5400+30:1800+30"]

1. e4 {[%emt 0:01:30]} e6 {[%emt 0:00:00]} 2. d4 {[%emt 0:00:03]} d5 {[%emt 0:00:00]} 3. Bd3 {[%emt 0:02:26]} c5 {[%emt 0:00:00]} 4. exd5 {[%emt 0:00:09]} exd5 {[%emt 0:00:27]} 5. Nf3 {[%emt 0:00:40]} c4 {[%emt 0:00:07]} 6. Be2 {[%emt 0:00:03]} Nf6 {[%emt 0:01:02]} 7. O-O {[%emt 0:00:07]} Bd6 {[%emt 0:01:28]} 8. b3 {[%emt 0:00:08]} cxb3 {[%emt 0:00:06]} 9. axb3 {[%emt 0:00:04]} O-O {[%emt 0:03:01]} 10. c4 {[%emt 0:03:21]} Nc6 {[%emt 0:07:51]} 11. Nc3 {[%emt 0:06:15]} h6 {[%emt 0:01:11]} 12. c5 {[%emt 0:21:27]} Bb8 {[%emt 0:00:41]} 13. Ra4 {[%emt 0:01:24]} a5 {[%emt 0:23:56]} 14. Ne1 {[%emt 0:13:56]} b6 {[%emt 0:15:53]} 15. Nc2 {[%emt 0:01:25]} Qc7 {[%emt 0:08:07]} 16. g3 {[%emt 0:00:05]} Qb7 {[%emt 0:00:17]} 17. Bf3 {[%emt 0:08:04]} b5 {[%emt 0:08:49]} 18. Ra1 {[%emt 0:00:31]} Be6 {[%emt 0:00:38]} 19. Qd3 {[%emt 0:06:16]} b4 {[%emt 0:00:36]} 20. Na4 {[%emt 0:00:05]} Bc7 {[%emt 0:00:34]} 21. Ne3 {[%emt 0:00:23]} Rae8 {[%emt 0:07:49]} 22. Re1 {[%emt 0:03:37]} Ne4 {[%emt 0:03:49]} 23. Bg2 {[%emt 0:01:37]} f5 {[%emt 0:01:25]} 24. Bb2 {[%emt 0:00:04]} g6 {[%emt 0:03:39]} 25. Nf1 {[%emt 0:03:41]} Kh7 {[%emt 0:01:13]} 26. Re2 {[%emt 0:00:41]} Re7 {[%emt 0:04:57]} 27. Rae1 {[%emt 0:00:33]} Rfe8 {[%emt 0:00:14]} 28. f3 {[%emt 0:01:10]} Nf6 {[%emt 0:00:08]} 29. Bc1 {[%emt 0:02:39]} f4 {[%emt 0:03:18]} 30. g4 {[%emt 0:00:30]} Kg7 {[%emt 0:01:03]} 31. h4 {[%emt 0:01:02]} Bf7 {[%emt 0:01:19]} 32. Rxe7 {[%emt 0:00:55]} Rxe7 {[%emt 0:00:01]} 33. Rxe7 {[%emt 0:00:07]} Nxe7 {[%emt 0:00:04]} 34. Nh2 {[%emt 0:00:54]} g5 {[%emt 0:02:25]} 35. h5 {[%emt 0:00:28]} Bg8 {[%emt 0:00:49]} 36. Bf1 {[%emt 0:02:48]} Bh7 {[%emt 0:00:19]} 37. Qd1 {[%emt 0:01:04]} Qc6 {[%emt 0:00:03]} 38. Bd3 {[%emt 0:00:06]} Qe6 {[%emt 0:00:13]} 39. Kf2 {[%emt 0:00:56]} Nc6 {[%emt 0:00:05]} 40. Bxh7 {[%emt 0:00:13]} Nxh7 {[%emt 0:00:05]} 41. Nf1 {[%emt 0:30:41]} Nf8 {[%emt 0:30:20]} 42. Bb2 {[%emt 0:01:31]} Bd8 {[%emt 0:00:00]} 43. Qd3 {[%emt 0:00:00]} Bf6 {[%emt 0:00:00]} 44. Nb6 {[%emt 0:00:00]} Kg8 {[%emt 0:00:00]} 45. Nd2 {[%emt 0:00:00]} Bg7 {[%emt 0:00:00]} 46. Qe2 {[%emt 0:00:00]} Qxe2+ {[%emt 0:00:00]} 47. Kxe2 {[%emt 0:00:00]} Ne7 {[%emt 0:00:00]} 48. Kd3 {[%emt 0:00:00]} Ne6 {[%emt 0:00:00]} 49. Nxd5 {[%emt 0:00:00]} Nxd5 {[%emt 0:00:00]} 50. Nc4 {[%emt 0:00:00]} Nc3 {[%emt 0:00:00]} 51. Nxa5 {[%emt 0:00:00]} Bxd4 {[%emt 0:00:09]} 52. c6 {[%emt 0:00:00]} Bb6 {[%emt 0:02:56]} 53. Nb7 {[%emt 0:01:53]} Nb5 {[%emt 0:00:08]} 54. Kc4 {[%emt 0:00:06]} Na7 {[%emt 0:00:14]} 55. Kd5 {[%emt 0:00:38]} Nc7+ {[%emt 0:01:22]} 56. Kd6 {[%emt 0:00:05]} Ncb5+ {[%emt 0:00:20]} 57. Kd7 {[%emt 0:00:04]} Bd4 {[%emt 0:00:47]} 58. Bc1 {[%emt 0:00:30]} Be3 {[%emt 0:00:50]} 59. Bb2 {[%emt 0:00:04]} Bd4 {[%emt 0:00:01]} 60. Bc1 {[%emt 0:00:15]} Bc3 {[%emt 0:03:26]} 61. Nd8 {[%emt 0:01:39]} Nd4 {[%emt 0:00:22]} 62. c7 {[%emt 0:00:04]} Nxf3 {[%emt 0:00:11]} 63. Nc6 {[%emt 0:00:06]} Ne5+ {[%emt 0:00:10]} 0-1

[Event "NOR-ch Elite 2019"]
[Site "Larvik"]
[Date "2019.07.12"]
[Round "8.5"]
[White "Ranaldi, Lucas"]
[Black "Hauge, Lars Oskar"]
[Result "0-1"]
[ECO "A26"]
[WhiteElo "2262"]
[BlackElo "2476"]
[Annotator "ChessBase"]
[PlyCount "90"]
[EventDate "2019.07.05"]
[EventType "swiss"]
[EventCountry "NOR"]
[SourceTitle "playchess.com"]
[Source "ChessBase"]
[SourceQuality "1"]
[TimeControl "40/5400+30:1800+30"]

1. c4 {[%emt 0:00:00]} e5 {[%emt 0:06:40]} 2. g3 {[%emt 0:00:00]} Nc6 {[%emt 0:00:14]} 3. Bg2 {[%emt 0:00:00]} f5 {[%emt 0:00:39]} 4. Nc3 {[%emt 0:00:00]} g6 {[%emt 0:03:01]} 5. d3 {[%emt 0:02:53]} Bg7 {[%emt 0:00:38]} 6. Rb1 {[%emt 0:02:34]} Nf6 {[%emt 0:02:08]} 7. b4 {[%emt 0:00:28]} O-O {[%emt 0:00:11]} 8. b5 {[%emt 0:01:05]} Nd4 {[%emt 0:03:05]} 9. e3 {[%emt 0:01:11]} Ne6 {[%emt 0:03:12]} 10. Nge2 {[%emt 0:00:08]} d6 {[%emt 0:00:04]} 11. O-O {[%emt 0:00:33]} h5 {[%emt 0:02:52]} 12. Nd5 {[%emt 0:11:40]} h4 {[%emt 0:01:14]} 13. Nxf6+ {[%emt 0:08:59]} Qxf6 {[%emt 0:01:08]} 14. f4 {[%emt 0:03:09]} hxg3 {[%emt 0:02:33]} 15. hxg3 {[%emt 0:00:31]} g5 {[%emt 0:00:10]} 16. Bb2 {[%emt 0:01:31]} Qh6 {[%emt 0:04:13]} 17. d4 {[%emt 0:04:38]} gxf4 {[%emt 0:02:46]} 18. gxf4 {[%emt 0:08:14]} e4 {[%emt 0:01:52]} 19. Ng3 {[%emt 0:09:58]} Qh4 {[%emt 0:01:08]} 20. Qe1 {[%emt 0:02:37]} Qg4 {[%emt 0:08:01]} 21. Kf2 {[%emt 0:13:56]} Bd7 {[%emt 0:09:07]} 22. Qe2 {[%emt 0:01:36]} Qxe2+ {[%emt 0:00:06]} 23. Kxe2 {[%emt 0:02:11]} a6 {[%emt 0:03:12]} 24. b6 {[%emt 0:00:43]} cxb6 {[%emt 0:00:05]} 25. d5 {[%emt 0:11:33]} Nc5 {[%emt 0:02:54]} 26. Bxg7 {[%emt 0:00:07]} Kxg7 {[%emt 0:00:03]} 27. Rxb6 {[%emt 0:00:11]} Kf7 {[%emt 0:01:30]} 28. Bh3 {[%emt 0:02:33]} Ke7 {[%emt 0:01:04]} 29. Kd2 {[%emt 0:03:11]} Rf7 {[%emt 0:02:03]} 30. Rfb1 {[%emt 0:04:07]} Rh8 {[%emt 0:01:24]} 31. Bf1 {[%emt 0:00:48]} Rg7 {[%emt 0:00:22]} 32. Ne2 {[%emt 0:00:13]} Rh2 {[%emt 0:00:24]} 33. Ke1 {[%emt 0:02:51]} Bc8 {[%emt 0:00:54]} 34. Kd2 {[%emt 0:01:19]} Kd7 {[%emt 0:00:14]} 35. Rd1 {[%emt 0:00:38]} Kc7 {[%emt 0:00:09]} 36. Rbb1 {[%emt 0:00:07]} Rgh7 {[%emt 0:01:37]} 37. Kc3 {[%emt 0:00:29]} Rf2 {[%emt 0:00:07]} 38. Nd4 {[%emt 0:01:21]} Rhh2 {[%emt 0:01:11]} 39. Re1 {[%emt 0:00:35]} Rxa2 {[%emt 0:02:31]} 40. Re2 {[%emt 0:00:32]} Ra3+ {[%emt 0:02:52]} 41. Kd2 {[%emt 0:30:38]} Rh1 {[%emt 0:33:27]} 42. Ree1 {[%emt 0:00:00]} Bd7 {[%emt 0:00:00]} 43. Be2 {[%emt 0:00:00]} Rh2 {[%emt 0:00:00]} 44. Nc2 {[%emt 0:00:00]} Rd3+ {[%emt 0:00:00]} 45. Kc1 {[%emt 0:00:00]} Ba4 {[%emt 0:00:00]} 0-1

[Event "NOR-ch Elite 2019"]
[Site "Larvik"]
[Date "2019.07.12"]
[Round "8.6"]
[White "Kaasen, Tor Fredrik"]
[Black "Elsness, Frode"]
[Result "1-0"]
[ECO "E05"]
[WhiteElo "2376"]
[BlackElo "2436"]
[Annotator "ChessBase"]
[PlyCount "49"]
[EventDate "2019.07.05"]
[EventType "swiss"]
[EventCountry "NOR"]
[SourceTitle "playchess.com"]
[Source "ChessBase"]
[SourceQuality "1"]
[TimeControl "40/5400+30:1800+30"]

1. d4 {[%emt 0:06:16]} Nf6 {[%emt 0:00:00]} 2. c4 {[%emt 0:00:14]} e6 {[%emt 0:00:00]} 3. Nf3 {[%emt 0:00:27]} d5 {[%emt 0:00:00]} 4. g3 {[%emt 0:00:20]} Be7 {[%emt 0:00:06]} 5. Bg2 {[%emt 0:00:40]} O-O {[%emt 0:00:07]} 6. O-O {[%emt 0:00:43]} dxc4 {[%emt 0:00:06]} 7. Ne5 {[%emt 0:06:02]} Nc6 {[%emt 0:00:10]} 8. Nxc6 {[%emt 0:00:07]} bxc6 {[%emt 0:00:04]} 9. Na3 {[%emt 0:00:05]} Bxa3 {[%emt 0:00:31]} 10. bxa3 {[%emt 0:00:28]} Ba6 {[%emt 0:02:20]} 11. Qd2 {[%emt 0:01:38]} Rb8 {[%emt 0:00:55]} 12. Rd1 {[%emt 0:00:45]} c3 {[%emt 0:24:50]} 13. Qc2 {[%emt 0:01:14]} Qe7 {[%emt 0:02:48]} 14. e4 {[%emt 0:06:18]} e5 {[%emt 0:08:23]} 15. Qxc3 {[%emt 0:14:22]} exd4 {[%emt 0:00:31]} 16. Rxd4 {[%emt 0:00:04]} c5 {[%emt 0:04:12]} 17. Ra4 {[%emt 0:01:24]} Bb5 {[%emt 0:06:22]} 18. Rxa7 {[%emt 0:03:23]} Nxe4 {[%emt 0:00:43]} 19. Qc2 {[%emt 0:04:04]} Qf6 {[%emt 0:08:34]} 20. Bb2 {[%emt 0:04:51]} Qb6 {[%emt 0:03:23]} 21. Bxe4 {[%emt 0:17:24]} Qxa7 {[%emt 0:00:03]} 22. Bxh7+ {[%emt 0:01:12]} Kh8 {[%emt 0:00:01]} 23. Bf5 {[%emt 0:09:40]} Qb6 {[%emt 0:20:52]} 24. Qd2 {[%emt 0:00:36]} Bd7 {[%emt 0:03:32]} 25. Qg5 {[%emt 0:00:43]} 1-0

[Event "NOR-ch Elite 2019"]
[Site "Larvik"]
[Date "2019.07.12"]
[Round "8.7"]
[White "Vestby-Ellingsen, Mads"]
[Black "Haldorsen, Benjamin"]
[Result "0-1"]
[ECO "A48"]
[WhiteElo "2335"]
[BlackElo "2444"]
[Annotator "ChessBase"]
[PlyCount "84"]
[EventDate "2019.07.05"]
[EventType "swiss"]
[EventCountry "NOR"]
[SourceTitle "playchess.com"]
[Source "ChessBase"]
[SourceQuality "1"]
[TimeControl "40/5400+30:1800+30"]

1. d4 {[%emt 0:00:00]} Nf6 {[%emt 0:03:32]} 2. Nf3 {[%emt 0:00:33]} g6 {[%emt 0:01:59]} 3. Bf4 {[%emt 0:05:57]} c5 {[%emt 0:02:04]} 4. e3 {[%emt 0:03:15]} Bg7 {[%emt 0:00:24]} 5. Be2 {[%emt 0:01:41]} O-O {[%emt 0:00:30]} 6. O-O {[%emt 0:00:46]} d6 {[%emt 0:03:33]} 7. h3 {[%emt 0:00:39]} Nc6 {[%emt 0:02:20]} 8. Nc3 {[%emt 0:18:29]} Nh5 {[%emt 0:02:47]} 9. Bh2 {[%emt 0:01:28]} cxd4 {[%emt 0:02:36]} 10. exd4 {[%emt 0:02:05]} Qb6 {[%emt 0:06:30]} 11. Rb1 {[%emt 0:07:42]} e5 {[%emt 0:06:42]} 12. dxe5 {[%emt 0:11:06]} dxe5 {[%emt 0:00:29]} 13. Nd5 {[%emt 0:00:29]} Qd8 {[%emt 0:00:13]} 14. Ne3 {[%emt 0:12:34]} Nf4 {[%emt 0:04:19]} 15. Bc4 {[%emt 0:03:00]} Qe7 {[%emt 0:03:48]} 16. c3 {[%emt 0:06:56]} Rd8 {[%emt 0:06:50]} 17. Qc2 {[%emt 0:00:50]} Na5 {[%emt 0:00:36]} 18. Bb3 {[%emt 0:01:20]} Nxb3 {[%emt 0:01:43]} 19. axb3 {[%emt 0:00:11]} Nd5 {[%emt 0:11:12]} 20. Nxd5 {[%emt 0:10:06]} Rxd5 {[%emt 0:00:05]} 21. Rbd1 {[%emt 0:00:18]} Be6 {[%emt 0:00:54]} 22. Rfe1 {[%emt 0:02:02]} f6 {[%emt 0:03:15]} 23. c4 {[%emt 0:05:02]} Rxd1 {[%emt 0:00:47]} 24. Rxd1 {[%emt 0:00:09]} Rd8 {[%emt 0:00:20]} 25. Rxd8+ {[%emt 0:04:13]} Qxd8 {[%emt 0:00:00]} 26. Bg3 {[%emt 0:00:17]} Bf5 {[%emt 0:02:44]} 27. Qc3 {[%emt 0:00:37]} Bf8 {[%emt 0:03:17]} 28. Kh2 {[%emt 0:01:04]} Qb6 {[%emt 0:01:38]} 29. Nh4 {[%emt 0:01:04]} Be6 {[%emt 0:00:29]} 30. Qd3 {[%emt 0:00:34]} Kg7 {[%emt 0:00:49]} 31. Kh1 {[%emt 0:00:29]} Bc5 {[%emt 0:00:12]} 32. f4 {[%emt 0:00:32]} exf4 {[%emt 0:00:31]} 33. Bxf4 {[%emt 0:00:18]} g5 {[%emt 0:01:04]} 34. b4 {[%emt 0:00:38]} Qxb4 {[%emt 0:00:24]} 35. Bd2 {[%emt 0:00:34]} Qxb2 {[%emt 0:00:43]} 36. Nf3 {[%emt 0:00:32]} Qa2 {[%emt 0:02:27]} 37. Qd8 {[%emt 0:00:27]} Qb1+ {[%emt 0:01:41]} 38. Kh2 {[%emt 0:00:08]} Qb6 {[%emt 0:00:11]} 39. Nxg5 {[%emt 0:00:53]} Bd6+ {[%emt 0:00:51]} 40. g3 {[%emt 0:00:18]} Qf2+ {[%emt 0:00:16]} 41. Kh1 {[%emt 0:30:09]} Qf1+ {[%emt 0:30:14]} 42. Kh2 {[%emt 0:00:11]} Qe2+ {[%emt 0:00:02]} 0-1

[Event "NOR-ch Elite 2019"]
[Site "Larvik"]
[Date "2019.07.12"]
[Round "8.8"]
[White "Haug, Johannes"]
[Black "Skrondal, Inge Sandstad"]
[Result "0-1"]
[ECO "B27"]
[WhiteElo "2431"]
[BlackElo "2312"]
[Annotator "ChessBase"]
[PlyCount "62"]
[EventDate "2019.07.05"]
[EventType "swiss"]
[EventCountry "NOR"]
[SourceTitle "playchess.com"]
[Source "ChessBase"]
[SourceQuality "1"]
[TimeControl "40/5400+30:1800+30"]

1. e4 {[%emt 0:04:52]} c5 {[%emt 0:00:00]} 2. Nf3 {[%emt 0:00:10]} g6 {[%emt 0:00:00]} 3. d4 {[%emt 0:00:12]} cxd4 {[%emt 0:00:00]} 4. Qxd4 {[%emt 0:00:06]} Nf6 {[%emt 0:00:07]} 5. e5 {[%emt 0:00:20]} Nc6 {[%emt 0:00:05]} 6. Qa4 {[%emt 0:00:08]} Nd5 {[%emt 0:00:05]} 7. Qe4 {[%emt 0:00:06]} Nb6 {[%emt 0:00:03]} 8. Nc3 {[%emt 0:00:12]} Bg7 {[%emt 0:00:25]} 9. Bf4 {[%emt 0:00:53]} d5 {[%emt 0:00:05]} 10. exd6 {[%emt 0:00:10]} Bf5 {[%emt 0:00:05]} 11. Qe3 {[%emt 0:01:32]} O-O {[%emt 0:00:21]} 12. O-O-O {[%emt 0:00:41]} exd6 {[%emt 0:00:05]} 13. Rxd6 {[%emt 0:02:35]} Qc8 {[%emt 0:00:21]} 14. Bh6 {[%emt 0:02:09]} Re8 {[%emt 0:00:10]} 15. Qd2 {[%emt 0:00:59]} Bh8 {[%emt 0:00:12]} 16. Bb5 {[%emt 0:00:52]} a6 {[%emt 0:20:05]} 17. Be2 {[%emt 0:00:14]} Nb4 {[%emt 0:25:20]} 18. Rxb6 {[%emt 0:08:46]} Bxc3 {[%emt 0:00:19]} 19. bxc3 {[%emt 0:00:12]} Rxe2 {[%emt 0:04:07]} 20. Qxe2 {[%emt 0:05:22]} Nxa2+ {[%emt 0:00:10]} 21. Kb2 {[%emt 0:00:24]} Qxc3+ {[%emt 0:01:01]} 22. Kxa2 {[%emt 0:00:22]} Qa5+ {[%emt 0:00:23]} 23. Kb1 {[%emt 0:00:41]} Qxb6+ {[%emt 0:00:05]} 24. Kc1 {[%emt 0:00:30]} Rc8 {[%emt 0:02:02]} 25. Ne1 {[%emt 0:05:13]} Qd4 {[%emt 0:23:52]} 26. Qe3 {[%emt 0:25:31]} Qa4 {[%emt 0:00:14]} 27. Kb2 {[%emt 0:28:46]} Bxc2 {[%emt 0:00:27]} 28. Nf3 {[%emt 0:01:36]} Qb4+ {[%emt 0:04:35]} 29. Ka2 {[%emt 0:01:37]} Qa4+ {[%emt 0:03:26]} 30. Kb2 {[%emt 0:01:16]} Qb5+ {[%emt 0:03:44]} 31. Ka2 {[%emt 0:00:45]} Rc4 {[%emt 0:00:09]} 0-1

[Event "NOR-ch Elite 2019"]
[Site "Larvik"]
[Date "2019.07.12"]
[Round "8.9"]
[White "Getz, Nicolai"]
[Black "Mikalsen, Erlend"]
[Result "1/2-1/2"]
[ECO "A09"]
[WhiteElo "2377"]
[BlackElo "2404"]
[Annotator "NA"]
[PlyCount "115"]
[EventDate "2019.07.05"]
[EventType "swiss"]
[EventCountry "NOR"]
[SourceTitle "playchess.com"]
[Source "ChessBase"]
[SourceQuality "1"]
[TimeControl "40/5400+30:1800+30"]

1. Nf3 {[%emt 0:00:00]} d5 {[%emt 0:00:00]} 2. c4 {[%emt 0:00:00]} d4 {[%emt 0:00:00]} 3. b4 {[%emt 0:00:13]} f6 {[%emt 0:00:00]} 4. e3 {[%emt 0:01:40]} e5 {[%emt 0:00:00]} 5. c5 {[%emt 0:01:13]} a5 {[%emt 0:00:39]} 6. Qa4+ {[%emt 0:00:51]} Bd7 {[%emt 0:02:17]} 7. b5 {[%emt 0:00:33]} Bxc5 {[%emt 0:00:47]} 8. Bc4 {[%emt 0:00:44]} Qe7 {[%emt 0:02:54]} 9. O-O {[%emt 0:04:52]} dxe3 {[%emt 0:02:53]} 10. fxe3 {[%emt 0:00:09]} e4 {[%emt 0:01:15]} 11. Nd4 {[%emt 0:00:56]} Qe5 {[%emt 0:01:50]} 12. Nc3 {[%emt 0:04:19]} Ne7 {[%emt 0:08:45]} 13. Ba3 {[%emt 0:01:13]} Na6 {[%emt 0:03:54]} 14. Qb3 {[%emt 0:27:14]} Nb4 {[%emt 0:03:34]} 15. Rac1 {[%emt 0:15:05]} Bd6 {[%emt 0:01:57]} 16. g3 {[%emt 0:01:11]} h5 {[%emt 0:03:57]} 17. Bf7+ {[%emt 0:02:10]} Kf8 {[%emt 0:02:04]} 18. Be6 {[%emt 0:02:09]} Ke8 {[%emt 0:07:44]} 19. Rf4 {[%emt 0:06:25]} Bxe6 {[%emt 0:03:11]} 20. Nxe6 {[%emt 0:01:11]} f5 {[%emt 0:00:11]} 21. Ne2 {[%emt 0:05:51]} Kd7 {[%emt 0:08:39]} 22. N2d4 {[%emt 0:01:34]} h4 {[%emt 0:03:26]} 23. gxh4 {[%emt 0:01:21]} Ned5 {[%emt 0:02:43]} 24. Rc5 {[%emt 0:01:42]} b6 {[%emt 0:05:55]} 25. Rxd5 {[%emt 0:13:34]} Qxd5 {[%emt 0:00:20]} 26. Qxd5 {[%emt 0:00:31]} Nxd5 {[%emt 0:00:06]} 27. Bxd6 {[%emt 0:00:09]} Kxd6 {[%emt 0:03:24]} 28. Rxf5 {[%emt 0:00:03]} g6 {[%emt 0:01:33]} 29. Rg5 {[%emt 0:01:08]} Rhg8 {[%emt 0:06:48]} 30. Rg4 {[%emt 0:01:28]} Rae8 {[%emt 0:00:45]} 31. Ng5 {[%emt 0:00:33]} Nf6 {[%emt 0:01:15]} 32. Rf4 {[%emt 0:00:05]} Rgf8 {[%emt 0:00:25]} 33. Rf1 {[%emt 0:01:04]} Nd7 {[%emt 0:01:16]} 34. Rc1 {[%emt 0:01:44]} Nc5 {[%emt 0:00:06]} 35. Kg2 {[%emt 0:00:24]} Rf2+ {[%emt 0:02:47]} 36. Kxf2 {[%emt 0:00:33]} Nd3+ {[%emt 0:00:03]} 37. Kg3 {[%emt 0:00:32]} Nxc1 {[%emt 0:00:04]} 38. a3 {[%emt 0:00:06]} Kd5 {[%emt 0:01:20]} 39. Kg4 {[%emt 0:01:17]} a4 {[%emt 0:02:02]} 40. Nh7 {[%emt 0:01:04]} Re5 {[%emt 0:05:49]} 41. Nf8 {[%emt 0:31:20]} Nb3 {[%emt 0:30:59]} 42. Nxg6 {[%emt 0:00:00]} Re8 {[%emt 0:00:00]} 43. Nf5 {[%emt 0:00:00]} Nxd2 {[%emt 0:00:00]} 44. h5 {[%emt 0:00:00]} Nc4 {[%emt 0:00:00]} 45. h6 {[%emt 0:00:00]} Ne5+ {[%emt 0:00:00]} 46. Nxe5 {[%emt 0:00:00]} Kxe5 {[%emt 0:00:00]} 47. Kg5 {[%emt 0:00:00]} Rg8+ {[%emt 0:00:00]} 48. Ng7 {[%emt 0:00:00]} c6 {[%emt 0:00:00]} 49. bxc6 {[%emt 0:00:00]} b5 {[%emt 0:00:00]} 50. Kg6 {[%emt 0:00:00]} b4 {[%emt 0:00:00]} 51. Kf7 {[%emt 0:00:00]} Rh8 {[%emt 0:00:00]} 52. c7 {[%emt 0:00:00]} Kd6 {[%emt 0:00:00]} 53. c8=Q {[%emt 0:00:00]} Rxc8 {[%emt 0:00:00]} 54. Ne8+ {[%emt 0:00:00]} Kd7 {[%emt 0:00:00]} 55. Nf6+ {[%emt 0:00:00]} Kd6 {[%emt 0:00:00]} 56. Ne8+ {[%emt 0:00:04]} Kd7 {[%emt 0:00:00]} 57. Nf6+ {[%emt 0:00:05]} Kd6 {[%emt 0:00:00]} 58. Ne8+ {[%emt 0:01:09]} 1/2-1/2

[Event "NOR-ch Elite 2019"]
[Site "Larvik"]
[Date "2019.07.12"]
[Round "8.10"]
[White "Andersen, Alf Roger"]
[Black "Stokke, Kjetil"]
[Result "0-1"]
[ECO "B27"]
[WhiteElo "2149"]
[BlackElo "2336"]
[Annotator "NA"]
[PlyCount "92"]
[EventDate "2019.07.05"]
[EventType "swiss"]
[EventCountry "NOR"]
[SourceTitle "playchess.com"]
[Source "ChessBase"]
[SourceQuality "1"]
[TimeControl "40/5400+30:1800+30"]

1. e4 {[%emt 0:00:00]} c5 {[%emt 0:05:21]} 2. Nf3 {[%emt 0:00:15]} g6 {[%emt 0:00:22]} 3. d4 {[%emt 0:03:23]} cxd4 {[%emt 0:00:06]} 4. Qxd4 {[%emt 0:00:03]} Nf6 {[%emt 0:00:10]} 5. Nc3 {[%emt 0:01:02]} Nc6 {[%emt 0:00:05]} 6. Qa4 {[%emt 0:00:34]} d6 {[%emt 0:00:07]} 7. e5 {[%emt 0:05:08]} dxe5 {[%emt 0:00:14]} 8. Nxe5 {[%emt 0:00:53]} Qd4 {[%emt 0:00:12]} 9. Nxc6 {[%emt 0:08:07]} Qxa4 {[%emt 0:00:47]} 10. Nxa4 {[%emt 0:00:03]} bxc6 {[%emt 0:00:08]} 11. Be2 {[%emt 0:03:09]} Bf5 {[%emt 0:06:31]} 12. Bf3 {[%emt 0:07:25]} Rc8 {[%emt 0:04:33]} 13. c4 {[%emt 0:00:35]} e5 {[%emt 0:03:48]} 14. O-O {[%emt 0:04:15]} Nd7 {[%emt 0:10:05]} 15. Be3 {[%emt 0:04:53]} Bd3 {[%emt 0:02:43]} 16. Rfe1 {[%emt 0:05:28]} Bb4 {[%emt 0:02:21]} 17. Nc3 {[%emt 0:03:22]} Bxc4 {[%emt 0:14:46]} 18. Bh6 {[%emt 0:08:28]} Bf8 {[%emt 0:04:51]} 19. Bxf8 {[%emt 0:07:05]} Kxf8 {[%emt 0:02:57]} 20. Rad1 {[%emt 0:06:18]} Ke7 {[%emt 0:04:15]} 21. g3 {[%emt 0:07:15]} Be6 {[%emt 0:01:06]} 22. b4 {[%emt 0:03:52]} Rhd8 {[%emt 0:12:27]} 23. Rc1 {[%emt 0:00:46]} f6 {[%emt 0:04:27]} 24. Red1 {[%emt 0:02:26]} Nb8 {[%emt 0:01:44]} 25. Kf1 {[%emt 0:04:51]} Rxd1+ {[%emt 0:01:47]} 26. Rxd1 {[%emt 0:01:34]} Rd8 {[%emt 0:00:58]} 27. Rxd8 {[%emt 0:01:03]} Kxd8 {[%emt 0:00:05]} 28. a3 {[%emt 0:00:40]} Bc4+ {[%emt 0:01:06]} 29. Ke1 {[%emt 0:00:19]} Kc7 {[%emt 0:00:15]} 30. Kd2 {[%emt 0:02:54]} Nd7 {[%emt 0:00:20]} 31. Na4 {[%emt 0:01:22]} Kd6 {[%emt 0:01:02]} 32. Nc3 {[%emt 0:02:20]} f5 {[%emt 0:02:59]} 33. g4 {[%emt 0:02:48]} e4 {[%emt 0:01:46]} 34. Bd1 {[%emt 0:00:35]} Ke5 {[%emt 0:02:34]} 35. Ba4 {[%emt 0:01:44]} Kd4 {[%emt 0:01:13]} 36. gxf5 {[%emt 0:01:19]} gxf5 {[%emt 0:00:07]} 37. Bxc6 {[%emt 0:01:07]} Ne5 {[%emt 0:00:07]} 38. Nb5+ {[%emt 0:00:55]} Bxb5 {[%emt 0:00:07]} 39. Bxb5 {[%emt 0:00:05]} f4 {[%emt 0:03:31]} 40. Kc2 {[%emt 0:01:04]} Ng4 {[%emt 0:01:56]} 41. a4 {[%emt 0:09:37]} Nxf2 {[%emt 0:00:21]} 42. Bf1 {[%emt 0:02:28]} Ng4 {[%emt 0:05:14]} 43. Bh3 {[%emt 0:01:15]} Ne3+ {[%emt 0:01:22]} 44. Kd2 {[%emt 0:02:04]} Nc4+ {[%emt 0:00:07]} 45. Kc2 {[%emt 0:01:39]} f3 {[%emt 0:00:26]} 46. b5 {[%emt 0:00:53]} e3 {[%emt 0:00:50]} 0-1